fUST/lending_fUST_20250612
["ID","MTS","AMOUNT","RATE_DAILY","PERIOD"]
[365456119,1749681040684,-460.0,0.00021896,4]
[365456121,1749681040694,-460.0,0.00021896,4]
[365456123,1749681040703,-460.0,0.00021896,4]
[365456125,1749681040712,-460.0,0.00021896,4]
[365456127,1749681040721,-460.0,0.00021896,4]
[365456129,1749681040730,-460.0,0.00021896,4]
[365456131,1749681040740,-460.0,0.00021896,4]
[365456133,1749681040749,-460.0,0.00021896,4]
[365456135,1749681040758,-460.0,0.00021896,4]
[365456137,1749681040767,-460.0,0.00021896,4]
[365456139,1749681040777,-460.0,0.00021896,4]
[365456141,1749681040785,-1096.46,0.00021896,4]
[365456143,1749681040795,-460.0,0.00021896,4]
[365456145,1749681040805,-460.0,0.00021896,4]
[365456147,1749681040815,-460.0,0.00021896,4]
[365456150,1749681040825,-2190.60935762,0.000219,6]
[365456152,1749681040834,-460.0,0.00021917,4]
[365456166,1749681040953,-460.0,0.00021917,4]
[365456168,1749681040963,-643.1,0.00021917,2]
[365456170,1749681040973,-460.0,0.00021917,4]
[365456172,1749681040982,-460.0,0.00021917,4]
[365456174,1749681040992,-460.0,0.00021917,4]
[365456176,1749681041001,-460.0,0.00021917,4]
[365456178,1749681041011,-501.63539255,0.00021984,2]
[365456180,1749681041021,-2190.6093576,0.00022003,6]
[365456182,1749681041030,-168.0,0.00022032,2]
[365456184,1749681041039,-267.75134371,0.0002207,2]
[365456186,1749681041048,-5000.0,0.00022081,2]
[365456188,1749681041058,-187.15,0.00022088,3]
[365456190,1749681041067,-561.47,0.00022088,3]
[365456192,1749681041078,-1000.0,0.00022098,4]
[365456194,1749681041087,-460.0,0.00022098,4]
[365456196,1749681041097,-460.0,0.00022098,4]
[365456198,1749681041107,-460.0,0.00022098,4]
[365456200,1749681041116,-1034.59,0.00022098,4]
[365456202,1749681041127,-460.0,0.00022098,4]
[365456204,1749681041136,-2190.6093576,0.00022107,6]
[365456206,1749681041146,-642.07,0.00022169,4]
[365456208,1749681041155,-915.35,0.00022169,4]
[365456210,1749681041164,-460.0,0.00022169,4]
[365456212,1749681041173,-460.0,0.00022169,4]
[365456214,1749681041183,-524.84,0.00022169,4]
[365456216,1749681041192,-460.0,0.00022169,4]
[365456218,1749681041201,-460.0,0.00022169,4]
[365456220,1749681041211,-460.0,0.00022169,4]
[365456222,1749681041221,-469.14,0.00022169,4]
[365456225,1749681041230,-460.0,0.00022169,4]
[365456227,1749681041240,-460.0,0.00022169,4]
[365456229,1749681041249,-460.0,0.00022169,4]
[365456231,1749681041259,-519.15,0.00022169,4]
[365456233,1749681041268,-1264.19,0.00022169,4]
[365456235,1749681041277,-1001.54,0.00022169,4]
[365456237,1749681041287,-666.5,0.00022169,4]
[365456239,1749681041296,-460.0,0.00022169,4]
[365456241,1749681041305,-656.08,0.0002217,4]
[365456243,1749681041314,-492.9263497,0.0002217,4]
[365456245,1749681041323,-460.0,0.0002217,4]
[365456247,1749681041333,-460.0,0.0002217,4]
[365456249,1749681041342,-460.0,0.0002217,4]
[365456251,1749681041355,-460.0,0.0002217,4]
[365456253,1749681041364,-460.0,0.0002217,4]
[365456255,1749681041375,-460.0,0.0002217,4]
[365456257,1749681041384,-460.0,0.0002217,4]
[365456259,1749681041393,-460.0,0.0002217,4]
[365456261,1749681041402,-460.0,0.0002217,4]
[365456263,1749681041411,-460.0,0.0002217,4]
[365456265,1749681041420,-460.0,0.0002217,4]
[365456267,1749681041429,-460.0,0.0002217,4]
[365456269,1749681041438,-460.0,0.0002217,4]
[365456271,1749681041448,-460.0,0.0002217,4]
[365456273,1749681041457,-468.8,0.0002217,4]
[365456275,1749681041466,-1096.46,0.0002217,4]
[365456277,1749681041475,-460.0,0.0002217,4]
[365456279,1749681041485,-460.0,0.0002217,4]
[365456281,1749681041494,-460.0,0.0002217,4]
[365456283,1749681041503,-168.0,0.00022173,2]
[365456285,1749681041512,-450.6,0.00022191,4]
[365456287,1749681041521,-460.0,0.00022191,4]
[365456289,1749681041530,-643.1,0.00022191,2]
[365456291,1749681041539,-354.56,0.00022191,4]
[365456293,1749681041548,-460.0,0.00022191,4]
[365456295,1749681041557,-183.41479128,0.00022191,4]
[365456297,1749681041567,-165.45494644,0.000222,69]
[365456299,1749681041576,-165.45494643,0.000222,69]
[365456301,1749681041584,-653.0,0.00022204,2]
[365456303,1749681041594,-2160.0,0.00022204,2]
[365456305,1749681041603,-405.0,0.00022204,2]
[365456307,1749681041614,-405.0,0.00022204,2]
[365456309,1749681041624,-2190.6093576,0.0002221,6]
[365456311,1749681041633,-594.33677496,0.0002229,2]
[365456313,1749681041642,-2190.6093576,0.00022314,7]
[365456315,1749681041651,-168.0,0.00022315,2]
[365456317,1749681041660,-1000.0,0.00022372,4]
[365456319,1749681041669,-460.0,0.00022372,4]
[365456321,1749681041678,-460.0,0.00022372,4]
[365456323,1749681041687,-460.0,0.00022372,4]
[365456325,1749681041696,-1034.59,0.00022372,4]
[365456327,1749681041704,-460.0,0.00022372,4]
[365456329,1749681041715,-2190.6093576,0.00022417,7]
[365456330,1749681041724,-642.07,0.00022443,4]
[365456333,1749681041734,-915.35,0.00022443,4]
[365456335,1749681041742,-460.0,0.00022443,4]
[365456337,1749681041751,-219.72,0.00022443,4]
[365456338,1749681041760,-442.16,0.00022443,4]
[365456341,1749681041770,-460.0,0.00022443,4]
[365456343,1749681041779,-469.14,0.00022443,4]
[365456344,1749681041788,-460.0,0.00022443,4]
[365456346,1749681041797,-519.15,0.00022443,4]
[365456349,1749681041807,-1264.19,0.00022443,4]
[365456351,1749681041816,-1001.54,0.00022443,4]
[365456352,1749681041825,-666.5,0.00022443,4]
[365456354,1749681041835,-460.0,0.00022443,4]
[365456356,1749681041844,-656.08,0.00022444,4]
[365456358,1749681041853,-460.0,0.00022444,4]
[365456361,1749681041862,-460.0,0.00022444,4]
[365456363,1749681041872,-460.0,0.00022444,4]
[365456365,1749681041881,-1096.46,0.00022444,4]
[365456367,1749681041890,-460.0,0.00022444,4]
[365456369,1749681041899,-460.0,0.00022444,4]
[365456370,1749681041908,-460.0,0.00022465,4]
[365456373,1749681041917,-643.1,0.00022465,2]
[365456375,1749681041926,-460.0,0.00022465,4]
[365456376,1749681041935,-267.75134369,0.00022481,2]
[365456379,1749681041945,-5153.82803689,0.000225,4]
[365456380,1749681041955,-2190.6093576,0.00022521,7]
[365456382,1749681041964,-500.0,0.00022539,2]
[365456384,1749681041974,-500.0,0.00022539,2]
[365456386,1749681041983,-500.0,0.00022539,2]
[365456389,1749681041993,-500.0,0.00022539,2]
[365456390,1749681042002,-500.0,0.00022539,2]
[365456392,1749681042011,-500.0,0.00022539,2]
[365456395,1749681042022,-470.20635681,0.00022539,2]
[365456396,1749681042031,-500.0,0.00022539,2]
[365456399,1749681042040,-500.0,0.00022539,2]
[365456401,1749681042050,-500.0,0.00022539,2]
[365456402,1749681042059,-500.0,0.00022539,2]
[365456404,1749681042069,-500.0,0.00022539,2]
[365456406,1749681042078,-38215.63461642,0.0002254,2]
[365456409,1749681042088,-153.0,0.0002255,2]
[365456411,1749681042102,-153.0,0.0002255,2]
[365456413,1749681042111,-153.0,0.0002255,2]
[365456415,1749681042122,-153.0,0.0002255,2]
[365456417,1749681042131,-153.0,0.0002255,2]
[365456419,1749681042142,-153.0,0.0002255,2]
[365456421,1749681042152,-153.0,0.0002255,2]
[365456423,1749681042162,-153.0,0.0002255,2]
[365456425,1749681042171,-153.0,0.0002255,2]
[365456427,1749681042180,-153.0,0.0002255,2]
[365456429,1749681042190,-153.0,0.0002255,2]
[365456431,1749681042200,-153.0,0.0002255,2]
[365456433,1749681042210,-153.0,0.0002255,2]
[365456436,1749681042223,-153.0,0.0002255,2]
[365456438,1749681042232,-153.0,0.0002255,2]
[365456440,1749681042241,-153.0,0.0002255,2]
[365456441,1749681042251,-153.0,0.0002255,2]
[365456444,1749681042261,-153.0,0.0002255,2]
[365456446,1749681042270,-153.0,0.0002255,2]
[365456447,1749681042279,-153.0,0.0002255,2]
[365456449,1749681042289,-153.0,0.0002255,2]
[365456451,1749681042298,-153.0,0.0002255,2]
[365456453,1749681042307,-153.0,0.0002255,2]
[365456455,1749681042316,-153.0,0.0002255,2]
[365456458,1749681042325,-153.0,0.0002255,2]
[365456459,1749681042335,-153.0,0.0002255,2]
[365456461,1749681042344,-153.0,0.0002255,2]
[365456463,1749681042357,-153.0,0.0002255,2]
[365456465,1749681042367,-153.0,0.0002255,2]
[365456467,1749681042377,-5532.31066992,0.000226,5]
[365456469,1749681042387,-2190.6093576,0.00022624,7]
[365456471,1749681042397,-5000.0,0.00022629,2]
[365456473,1749681042406,-1000.0,0.00022646,4]
[365456475,1749681042416,-460.0,0.00022646,4]
[365456477,1749681042426,-460.0,0.00022646,4]
[365456479,1749681042436,-1034.59,0.00022646,4]
[365456481,1749681042445,-460.0,0.00022646,4]
[365456483,1749681042455,-168.0,0.00022661,2]
[365456485,1749681042464,-642.07,0.00022717,4]
[365456487,1749681042473,-915.35,0.00022717,4]
[365456489,1749681042483,-460.0,0.00022717,4]
[365456492,1749681042492,-460.0,0.00022717,4]
[365456494,1749681042501,-469.14,0.00022717,4]
[365456496,1749681042511,-466.52,0.00022717,4]
[365456498,1749681042520,-519.15,0.00022717,4]
[365456500,1749681042529,-1264.19,0.00022717,4]
[365456502,1749681042538,-1001.54,0.00022717,4]
[365456504,1749681042548,-666.5,0.00022717,4]
[365456506,1749681042557,-460.0,0.00022717,4]
[365456508,1749681042566,-656.08,0.00022718,4]
[365456510,1749681042575,-460.0,0.00022718,4]
[365456512,1749681042585,-460.0,0.00022718,4]
[365456514,1749681042600,-1096.46,0.00022718,4]
[365456516,1749681042610,-460.0,0.00022718,4]
[365456518,1749681042619,-460.0,0.00022718,4]
[365456520,1749681042629,-501.60046574,0.00022727,2]
[365456522,1749681042639,-163.5396541,0.00022727,2]
[365456524,1749681042648,-500.0,0.00022727,2]
[365456526,1749681042657,-500.0,0.00022727,2]
[365456528,1749681042666,-500.0,0.00022727,2]
[365456530,1749681042675,-500.0,0.00022727,2]
[365456532,1749681042683,-644.67879016,0.00022727,2]
[365456534,1749681042692,-501.29367668,0.00022727,2]
[365456536,1749681042701,-500.0,0.00022727,2]
[365456538,1749681042710,-500.0,0.00022727,2]
[365456540,1749681042720,-500.0,0.00022727,2]
[365456542,1749681042729,-501.67926998,0.00022727,2]
[365456544,1749681042738,-500.0,0.00022727,2]
[365456546,1749681042747,-500.0,0.00022727,2]
[365456548,1749681042756,-500.0,0.00022727,2]
[365456550,1749681042765,-500.0,0.00022727,2]
[365456552,1749681042774,-500.0,0.00022727,2]
[365456554,1749681042782,-500.0,0.00022727,2]
[365456556,1749681042791,-600.0,0.00022727,2]
[365456558,1749681042800,-500.0,0.00022727,2]
[365456560,1749681042809,-500.0,0.00022727,2]
[365456562,1749681042819,-503.13665459,0.00022727,2]
[365456564,1749681042827,-160.0,0.00022728,7]
[365456566,1749681042836,-2190.6093576,0.00022728,7]
[365456568,1749681042845,-500.0,0.00022738,2]
[365456570,1749681042854,-500.0,0.00022738,2]
[365456572,1749681042863,-160.0,0.00022738,2]
[365456574,1749681042874,-296.68,0.00022739,4]
[365456575,1749681042883,-643.1,0.00022739,2]
[365456577,1749681042893,-215.24,0.00022739,4]
[365456580,1749681042913,-639.0,0.000228,2]
[365456581,1749681042932,-6000.0,0.000228,4]
[365456583,1749681042941,-594.33677496,0.00022801,2]
[365456585,1749681042950,-2190.6093576,0.00022831,8]
[365456587,1749681042959,-165.45494643,0.00022833,72]
[365456590,1749681042969,-151.0,0.00022845,6]
[365456593,1749681042978,-600.0,0.00022848,2]
[365456595,1749681042987,-156.5232587,0.00022849,2]
[365456597,1749681042996,-153.0,0.00022849,2]
[365456598,1749681043005,-153.0,0.00022849,2]
[365456600,1749681043014,-160.0,0.00022863,3]
[365456602,1749681043023,-883.16629982,0.00022871,2]
[365456606,1749681043033,-168.0,0.00022877,2]
[365456608,1749681043042,-267.75134369,0.00022892,2]
[365456611,1749681043052,-215.0738,0.00022902,2]
[365456614,1749681043061,-1000.0,0.0002292,4]
[365456617,1749681043071,-460.0,0.0002292,4]
[365456619,1749681043082,-460.0,0.0002292,4]
[365456621,1749681043092,-1034.59,0.0002292,4]
[365456623,1749681043102,-460.0,0.0002292,4]
[365456625,1749681043111,-2190.6093576,0.00022934,8]
[365456626,1749681043124,-303.0,0.00022943,2]
[365456628,1749681043137,-420.0,0.00022943,2]
[365456630,1749681043146,-438.97473954,0.00022973,2]
[365456632,1749681043155,-500.0,0.00022973,2]
[365456634,1749681043164,-500.0,0.00022973,2]
[365456637,1749681043173,-500.0,0.00022973,2]
[365456640,1749681043183,-151.0,0.00022973,6]
[365456643,1749681043192,-642.07,0.00022991,4]
[365456646,1749681043201,-915.35,0.00022991,4]
[365456649,1749681043211,-460.0,0.00022991,4]
[365456652,1749681043220,-608.54838517,0.00022991,4]
[365456655,1749681043230,-469.14,0.00022991,4]
[365456659,1749681043240,-519.15,0.00022991,4]
[365456664,1749681043249,-1264.19,0.00022991,4]
[365456668,1749681043259,-1001.54,0.00022991,4]
[365456671,1749681043269,-666.5,0.00022991,4]
[365456674,1749681043278,-257.0,0.00022991,4]
[365456679,1749681043288,-656.08,0.00022992,4]
[365456681,1749681043298,-460.0,0.00022992,4]
[365456683,1749681043306,-460.0,0.00022992,4]
[365456685,1749681043315,-1096.46,0.00022992,4]
[365456687,1749681043324,-525.3,0.00022992,4]
[365456689,1749681043333,-460.0,0.00022992,4]
[365456691,1749681043342,-3110.31,0.00023,7]
[365456693,1749681043355,-171734.02,0.00023,7]
[365456695,1749681043364,-151.0,0.00023,7]
[365456697,1749681043377,-160.0,0.00023,7]
[365456699,1749681043386,-172149.33934435,0.00023,20]
[365456701,1749681043401,-430.0,0.00023,20]
[365456704,1749681043412,-3196.67910751,0.00023,20]
[365456706,1749681043427,-2781.89999998,0.00023,20]
[365457014,1749681046644,-77308.10999927,0.00023,20]
[365459205,1749681277151,1016.0,0.00024658,120]
[365459207,1749681294297,1080777.23719645,0.00024942,120]
[365459225,1749682074180,174.938106,0.00013699,2]
[365459247,1749682231682,-174.938106,0.00020187,2]
[365459249,1749682231692,-250.8555093,0.00020454,2]
[365459251,1749682231701,-173.082129,0.00020456,2]
[365459253,1749682231711,-505.6622556,0.00021347,4]
[365459262,1749682231793,-494.3377444,0.00021347,4]
[365459264,1749682231807,-296.68,0.00021347,4]
[365459266,1749682231817,-523.08,0.00021347,2]
[365459268,1749682231827,-215.24,0.00021347,4]
[365459270,1749682231836,-500.0,0.0002135,2]
[365459272,1749682231847,-803.17,0.00021355,2]
[365459274,1749682231858,-300.0,0.00021567,2]
[365459276,1749682231867,-300.0,0.00021568,2]
[365459278,1749682231879,-160.0,0.00021568,2]
[365459280,1749682231888,-229.71724145,0.00021568,2]
[365459282,1749682231897,-160.0,0.00021568,2]
[365459284,1749682231906,-11860.25191276,0.00021568,2]
[365459286,1749682231915,-213.16534259,0.00021568,2]
[365459288,1749682231925,-160.0,0.00021568,2]
[365459290,1749682231935,-424.19973472,0.00021568,2]
[365459292,1749682231945,-835.03886221,0.00021568,2]
[365459295,1749682231954,-160.0,0.00021568,2]
[365459296,1749682231964,-844.64040732,0.00021568,2]
[365459298,1749682231973,-160.0,0.00021568,2]
[365459300,1749682231983,-207.4,0.00021569,2]
[365459303,1749682231993,-5000.0,0.00021569,2]
[365459305,1749682232003,-546.64,0.0002158,4]
[365459307,1749682232012,-778.34,0.0002158,4]
[365459309,1749682232022,-547.35,0.0002158,4]
[365459311,1749682232031,-460.0,0.0002158,4]
[365459313,1749682232041,-460.0,0.0002158,4]
[365459315,1749682232050,-460.0,0.0002158,4]
[365459317,1749682232060,-466.52,0.0002158,4]
[365459319,1749682232069,-1053.7,0.0002158,4]
[365459321,1749682232078,-824.54,0.0002158,4]
[365459323,1749682232087,-460.0,0.0002158,4]
[365459325,1749682232097,-460.0,0.0002158,4]
[365459327,1749682232107,-555.09,0.00021581,4]
[365459329,1749682232117,-460.0,0.00021581,4]
[365459331,1749682232129,-247.292,0.00021581,2]
[365459333,1749682232138,-460.0,0.00021581,4]
[365459335,1749682232151,-460.0,0.00021581,4]
[365459337,1749682232160,-460.0,0.00021581,4]
[365459339,1749682232170,-460.0,0.00021581,4]
[365459341,1749682232180,-460.0,0.00021581,4]
[365459343,1749682232189,-933.79,0.00021581,4]
[365459345,1749682232199,-460.0,0.00021581,4]
[365459347,1749682232208,-460.0,0.00021581,4]
[365459349,1749682232217,-467.35000002,0.00021581,4]
[365459351,1749682232232,-907.97,0.00021581,4]
[365459353,1749682232241,-1000.0,0.00021621,4]
[365459355,1749682232251,-523.08,0.00021621,2]
[365459357,1749682232261,-500.0,0.00021853,2]
[365459359,1749682232272,-500.0,0.00021853,2]
[365459361,1749682232281,-459.44791126,0.00021853,2]
[365459363,1749682232291,-500.0,0.00021853,2]
[365459365,1749682232301,-463.56064296,0.00021853,2]
[365459367,1749682232310,-500.0,0.00021853,2]
[365459369,1749682232320,-500.0,0.00021853,2]
[365459371,1749682232330,-500.0,0.00021853,2]
[365459373,1749682232339,-500.0,0.00021853,2]
[365459375,1749682232348,-500.0,0.00021853,2]
[365459377,1749682232361,-357.95135889,0.00021853,2]
[365459379,1749682232375,-500.0,0.00021853,2]
[365459381,1749682232385,-500.0,0.00021853,2]
[365459383,1749682232394,-500.0,0.00021853,2]
[365459385,1749682232404,-500.0,0.00021853,2]
[365459387,1749682232414,-500.0,0.00021853,2]
[365459389,1749682232424,-500.0,0.00021853,2]
[365459391,1749682232435,-500.0,0.00021853,2]
[365459393,1749682232444,-500.0,0.00021853,2]
[365459395,1749682232454,-500.0,0.00021853,2]
[365459397,1749682232464,-500.0,0.00021853,2]
[365459399,1749682232474,-500.0,0.00021853,2]
[365459401,1749682232483,-500.0,0.00021853,2]
[365459403,1749682232492,-546.64,0.00021854,4]
[365459405,1749682232502,-778.34,0.00021854,4]
[365459407,1749682232512,-547.35,0.00021854,4]
[365459409,1749682232521,-460.0,0.00021854,4]
[365459411,1749682232530,-460.0,0.00021854,4]
[365459413,1749682232540,-460.0,0.00021854,4]
[365459415,1749682232549,-1053.7,0.00021854,4]
[365459417,1749682232559,-824.54,0.00021854,4]
[365459419,1749682232568,-460.0,0.00021854,4]
[365459421,1749682232577,-257.0,0.00021854,4]
[365459423,1749682232587,-555.09,0.00021855,4]
[365459425,1749682232597,-525.3,0.00021855,4]
[365459427,1749682232610,-460.0,0.00021855,4]
[365459429,1749682232619,-460.0,0.00021855,4]
[365459431,1749682232629,-460.0,0.00021855,4]
[365459433,1749682232639,-460.0,0.00021855,4]
[365459435,1749682232648,-460.0,0.00021855,4]
[365459437,1749682232658,-933.79,0.00021855,4]
[365459439,1749682232667,-460.0,0.00021855,4]
[365459441,1749682232677,-395.44581204,0.00021855,4]
[365459665,1749682238012,-991.0351828,0.00021569,2]
[365459668,1749682238023,-225.77095956,0.00021569,2]
[365459670,1749682238032,-304.78658478,0.0002158,4]
[365459672,1749682238044,-155.21341522,0.0002158,4]
[365459674,1749682238053,-500.0,0.0002158,2]
[365459676,1749682238062,-521.3737389,0.0002158,2]
[365459678,1749682238073,-73.95418987,0.0002158,2]
[365459680,1749682238083,-64.55418796,0.00021855,4]
[365459681,1749682238092,-774.86326738,0.00021855,4]
[365459693,1749682238198,-133.10673262,0.00021855,4]
[365459695,1749682238208,-160.0,0.00021885,2]
[365459697,1749682238218,-1000.0,0.00021895,4]
[365459699,1749682238228,-523.08,0.00021895,2]
[365459701,1749682238237,-2608.15267561,0.000219,6]
[365459703,1749682238247,-168.0,0.00021912,2]
[365459705,1749682238256,-165.0,0.00022,2]
[365459707,1749682238265,-166.0,0.00022,2]
[365459709,1749682238275,-2608.15267546,0.00022003,6]
[365459711,1749682238284,-2608.15267546,0.00022107,6]
[365459713,1749682238293,-5000.0,0.00022117,2]
[365459715,1749682238302,-546.64,0.00022128,4]
[365459717,1749682238312,-778.34,0.00022128,4]
[365459719,1749682238321,-547.35,0.00022128,4]
[365459721,1749682238330,-460.0,0.00022128,4]
[365459723,1749682238340,-460.0,0.00022128,4]
[365459725,1749682238350,-460.0,0.00022128,4]
[365459727,1749682238361,-1053.7,0.00022128,4]
[365459729,1749682238371,-824.54,0.00022128,4]
[365459731,1749682238380,-460.0,0.00022128,4]
[365459733,1749682238390,-555.09,0.00022129,4]
[365459735,1749682238399,-460.0,0.00022129,4]
[365459737,1749682238407,-460.0,0.00022129,4]
[365459739,1749682238417,-460.0,0.00022129,4]
[365459741,1749682238426,-460.0,0.00022129,4]
[365459743,1749682238435,-933.79,0.00022129,4]
[365459745,1749682238445,-460.0,0.00022129,4]
[365459747,1749682238454,-460.0,0.00022129,4]
[365459749,1749682238463,-907.97,0.00022129,4]
[365459751,1749682238473,-1000.0,0.00022169,4]
[365459753,1749682238482,-523.08,0.00022169,2]
[365459755,1749682238491,-2608.15267546,0.0002221,6]
[365459756,1749682238501,-153.0,0.00022219,2]
[365459758,1749682238510,-153.0,0.00022219,2]
[365459760,1749682238519,-153.0,0.00022219,2]
[365459762,1749682238528,-963.0,0.00022232,2]
[365459764,1749682238538,-405.0,0.00022232,2]
[365459766,1749682238547,-405.0,0.00022232,2]
[365459768,1749682238556,-653.0,0.00022232,2]
[365459770,1749682238565,-2160.0,0.00022232,2]
[365459772,1749682238575,-152.511,0.00022232,2]
[365459774,1749682238584,-252.97,0.00022304,10]
[365459776,1749682238593,-2608.15267546,0.00022314,7]
[365459778,1749682238602,-168.0,0.00022329,2]
[365459780,1749682238616,-22242.08248186,0.000224,2]
[365459783,1749682238626,-445.57840354,0.000224,2]
[365459784,1749682238635,-546.64,0.00022402,4]
[365459786,1749682238644,-778.34,0.00022402,4]
[365459788,1749682238653,-547.35,0.00022402,4]
[365459790,1749682238662,-460.0,0.00022402,4]
[365459792,1749682238672,-460.0,0.00022402,4]
[365459794,1749682238681,-500.0,0.00022402,2]
[365459796,1749682238690,-608.54838517,0.00022402,4]
[365459798,1749682238699,-1053.7,0.00022402,4]
[365459800,1749682238709,-824.54,0.00022402,4]
[365459802,1749682238718,-460.0,0.00022402,4]
[365459804,1749682238727,-500.0,0.00022402,2]
[365459806,1749682238737,-555.09,0.00022403,4]
[365459808,1749682238746,-460.0,0.00022403,4]
[365459810,1749682238755,-460.0,0.00022403,4]
[365459812,1749682238764,-460.0,0.00022403,4]
[365459813,1749682238774,-460.0,0.00022403,4]
[365459815,1749682238784,-933.79,0.00022403,4]
[365459818,1749682238794,-460.0,0.00022403,4]
[365459820,1749682238804,-448.92,0.00022403,4]
[365459821,1749682238815,-907.97,0.00022403,4]
[365459823,1749682238825,-2608.15267546,0.00022417,7]
[365459826,1749682238836,-502.64746631,0.00022418,2]
[365459827,1749682238845,-1000.0,0.00022443,4]
[365459829,1749682238857,-523.08,0.00022443,2]
[365459830,1749682238870,-374.3,0.0002249,3]
[365459831,1749682238879,-500.0,0.00022499,2]
[365459832,1749682238890,-500.0,0.00022499,2]
[365459833,1749682238911,-500.0,0.00022499,2]
[365459834,1749682238921,-500.0,0.00022499,2]
[365459835,1749682238930,-500.0,0.00022499,2]
[365459836,1749682238939,-179.14444977,0.00022499,2]
[365459837,1749682238949,-500.0,0.00022499,2]
[365459838,1749682238959,-500.0,0.00022499,2]
[365459839,1749682238970,-500.0,0.00022499,2]
[365459840,1749682238980,-500.0,0.00022499,2]
[365459841,1749682238990,-500.0,0.00022499,2]
[365459842,1749682239000,-291.06190704,0.00022499,2]
[365459843,1749682239010,-500.0,0.00022499,2]
[365459844,1749682239020,-171734.02,0.000225,7]
[365459845,1749682239030,-3110.31,0.000225,7]
[365459846,1749682239040,-213.16534259,0.000225,7]
[365459847,1749682239050,-844.64040732,0.000225,7]
[365459848,1749682239059,-11860.25191276,0.000225,7]
[365459849,1749682239069,-160.0,0.000225,7]
[365459850,1749682239078,-2608.15267546,0.00022521,7]
[365459851,1749682239089,-365.0707398,0.00022575,2]
[365459852,1749682239099,-365.0707398,0.00022575,2]
[365459853,1749682239109,-252.8153633,0.00022575,2]
[365459854,1749682239120,-191.1,0.00022589,6]
[365459855,1749682239130,-2608.15267546,0.00022624,7]
[365459856,1749682239140,-445.5784035,0.0002265,2]
[365459857,1749682239150,-153.0,0.00022665,2]
[365459858,1749682239159,-153.0,0.00022665,2]
[365459859,1749682239169,-153.0,0.00022665,2]
[365459860,1749682239179,-153.0,0.00022665,2]
[365459861,1749682239189,-153.0,0.00022665,2]
[365459862,1749682239198,-153.0,0.00022665,2]
[365459863,1749682239208,-153.0,0.00022665,2]
[365459864,1749682239218,-153.0,0.00022665,2]
[365459865,1749682239228,-153.0,0.00022665,2]
[365459866,1749682239238,-153.0,0.00022665,2]
[365459867,1749682239248,-153.0,0.00022665,2]
[365459868,1749682239259,-153.0,0.00022665,2]
[365459869,1749682239269,-153.0,0.00022665,2]
[365459870,1749682239278,-153.0,0.00022665,2]
[365459871,1749682239288,-153.0,0.00022665,2]
[365459872,1749682239300,-153.0,0.00022665,2]
[365459873,1749682239309,-153.0,0.00022665,2]
[365459874,1749682239319,-153.0,0.00022665,2]
[365459875,1749682239328,-153.0,0.00022665,2]
[365459876,1749682239338,-153.0,0.00022665,2]
[365459877,1749682239347,-153.0,0.00022665,2]